bitfinex-derivatives/quotes_BNBF0:USTF0_20250424
["timestamp","ask_amount","ask_price","bid_price","bid_amount"]
[1745508298646,0.28991786,600.97,600.02,2.737]
[1745508298848,0.27100629,600.96,600.02,2.737]
[1745508299037,0.28991786,600.97,600.02,2.737]
[1745508299342,0.27101168,600.96,600.02,2.737]
[1745508300644,0.27096489,600.95,600.02,2.737]
[1745508300840,0.27096489,600.96,600.02,2.737]
[1745508301044,0.27096489,600.95,600.02,2.737]
[1745508301244,0.27096489,600.96,600.02,2.737]
[1745508301444,0.27096489,600.95,600.02,2.737]
[1745508301641,0.28991786,600.97,600.02,2.737]
[1745508301840,0.27096117,600.96,600.02,2.737]
[1745508303147,0.28991786,600.97,600.02,2.737]
[1745508303446,0.27095298,600.96,600.02,2.737]
[1745508304645,0.27095298,601.36,600.02,2.737]
[1745508304846,0.2898768,600.95,600.02,2.737]
[1745508305045,0.27095298,600.94,600.02,2.737]
[1745508305540,0.27095298,600.93,600.02,2.737]
[1745508305747,0.27095298,600.92,600.02,2.737]
[1745508305946,0.27095298,600.91,600.02,2.737]
[1745508306145,1.2761771,601.41,600.02,2.737]
[1745508306344,0.27096112,601.4,600.02,2.737]
[1745508306544,0.27096112,601.39,600.02,2.737]
[1745508306741,0.27096112,601.38,600.02,2.737]
[1745508306941,0.28987922,601.4,600.02,2.737]
[1745508307145,0.27095875,601.39,600.02,2.737]
[1745508307445,0.27095875,601.38,600.02,2.737]
[1745508307642,0.27095875,601.37,600.02,2.737]
[1745508307848,0.27096405,601.36,600.02,2.737]
[1745508308046,0.27096405,601.35,600.02,2.737]
[1745508308346,0.27096405,601.34,600.02,2.737]
[1745508308540,0.27096405,601.33,600.02,2.737]
[1745508308842,0.27096405,601.32,600.02,2.737]
[1745508309045,0.27096405,601.31,600.02,2.737]
[1745508309247,0.28987922,601.38,600.02,2.737]
[1745508309443,0.27095872,601.37,600.02,2.737]
[1745508309648,0.27095872,601.36,600.02,2.737]
[1745508309947,0.27095872,601.35,600.02,2.737]
[1745508310149,0.27095872,601.34,600.02,2.737]
[1745508310350,0.27095872,601.33,600.02,2.737]
[1745508310651,0.27095872,601.32,600.02,2.737]
[1745508310853,1.2761771,601.35,600.02,2.737]
[1745508311053,0.27096469,601.34,600.02,2.737]
[1745508311353,0.27096469,601.33,600.02,2.737]
[1745508311553,0.27096469,601.32,600.02,2.737]
[1745508311752,0.27096469,601.31,600.02,2.737]
[1745508311952,0.27096469,601.3,600.02,2.737]
[1745508312152,0.27096469,601.29,600.02,2.737]
[1745508312353,0.27096469,601.28,600.02,2.737]
[1745508312648,0.27096469,601.27,600.02,2.737]
[1745508312847,0.27096469,601.26,600.02,2.737]
[1745508313052,0.27096469,601.25,600.02,2.737]
[1745508313251,0.27096469,601.24,600.02,2.737]
[1745508313451,0.27096469,601.23,600.02,2.737]
[1745508313746,0.27096469,601.22,600.02,2.737]
[1745508313950,0.27096469,601.21,600.02,2.737]
[1745508314153,0.27096469,601.2,600.02,2.737]
[1745508314452,0.27096469,601.19,600.02,2.737]
[1745508314650,0.27096469,601.18,600.02,2.737]
[1745508314846,0.27096469,601.17,600.02,2.737]
[1745508315051,0.27096469,601.16,600.02,2.737]
[1745508315251,0.27096469,601.15,600.02,2.737]
[1745508315451,0.27096469,601.14,600.02,2.737]
[1745508315652,1.2761771,601.06,600.02,2.737]
[1745508315954,0.27096469,601.05,600.02,2.737]
[1745508316650,0.27096469,601.04,600.02,2.737]
[1745508316847,0.27096469,601.03,600.02,2.737]
[1745508317152,0.27098099,601.02,600.02,2.737]
[1745508317353,0.27098099,601.03,600.02,2.737]
[1745508317652,0.27098099,601.02,600.02,2.737]
[1745508317854,0.27098099,601.01,600.02,2.737]
[1745508318156,0.27098099,601.0,600.02,2.737]
[1745508318354,0.27098099,601.03,600.02,2.737]
[1745508318652,0.27098099,601.02,600.02,2.737]
[1745508318850,0.27098099,601.01,600.02,2.737]
[1745508319053,0.27098099,601.0,600.02,2.737]
[1745508319250,0.27098099,601.03,600.02,2.737]
[1745508319450,0.27098099,601.02,600.02,2.737]
[1745508319651,0.27098099,601.03,600.02,2.737]
[1745508319947,0.27098099,601.02,600.02,2.737]
[1745508320153,0.27098099,601.03,600.02,2.737]
[1745508320352,0.27098099,601.02,600.02,2.737]
[1745508320553,0.27098099,601.03,600.02,2.737]
[1745508320753,0.27098099,601.02,600.02,2.737]
[1745508320953,0.27098099,601.03,600.02,2.737]
[1745508321251,0.27098099,601.02,600.02,2.737]
[1745508321455,0.28992389,601.04,600.02,2.737]
[1745508321754,0.27105511,601.03,600.02,2.737]
[1745508322756,0.28993356,601.02,600.02,2.737]
[1745508323156,0.2710867,601.01,600.02,2.737]
[1745508323455,0.2710867,601.0,600.02,2.737]
[1745508323657,0.2710867,600.99,600.02,2.737]
[1745508323958,0.2710867,600.98,600.02,2.737]
[1745508324153,0.2710867,600.97,600.02,2.737]
[1745508324357,0.2710867,600.96,600.02,2.737]
[1745508324552,0.2710867,600.95,600.02,2.737]
[1745508324855,0.2710867,600.94,600.02,2.737]
[1745508325057,0.2710867,600.93,600.02,2.737]
[1745508325258,0.2710867,600.92,600.02,2.737]
[1745508325557,0.2710867,600.91,600.02,2.737]
[1745508325857,0.2710867,600.9,600.02,2.737]
[1745508326059,0.28993356,601.02,600.02,2.737]
[1745508326258,1.2761771,600.85,600.02,2.737]
[1745508326456,0.27109506,600.84,600.02,2.737]
[1745508328058,0.27109506,600.83,600.02,2.737]
[1745508328259,0.27109506,600.82,600.02,2.737]
[1745508328463,0.27109506,600.81,600.02,2.737]
[1745508328659,0.27109506,600.8,600.02,2.737]
[1745508328859,0.27109506,600.79,600.02,2.737]
[1745508329160,0.27109506,600.78,600.02,0.637]
[1745508329361,0.27109506,600.77,600.02,0.637]
[1745508329558,0.27109506,600.76,600.02,0.637]
[1745508329756,0.27109506,600.75,599.04,0.28995771]
[1745508329960,0.27109506,600.74,599.05,0.92397472]
[1745508330159,0.27109506,600.74,599.06,0.92397472]
[1745508330361,0.27109506,600.73,599.07,0.92397472]
[1745508330656,0.27109506,600.72,599.08,0.92397472]
[1745508330862,0.27109506,601.01,599.09,0.92397472]
[1745508331062,1.2761771,600.78,599.1,0.92397472]
[1745508331359,0.27109506,600.77,599.11,0.92397472]
[1745508331557,0.27109506,600.77,599.12,0.92397472]
[1745508331862,0.27109506,600.77,599.13,1.60097472]
[1745508332062,0.27109506,600.77,599.14,0.92397472]
[1745508332364,0.27106032,600.76,599.15,0.9239764]
[1745508332563,0.27106032,600.75,599.16,0.9239764]
[1745508332863,0.27106032,600.74,599.17,0.9239764]
[1745508333060,0.27106032,600.74,599.15,0.89]
[1745508333061,0.29010274,600.74,599.18,0.9239764]
[1745508333261,0.29010274,600.74,599.15,0.89]
[1745508333262,0.27106032,600.73,599.19,0.9239764]
[1745508333462,0.27106032,600.73,599.2,0.9239764]
[1745508333664,0.27106032,600.73,599.21,0.6176938]
[1745508333966,0.27106032,600.73,599.22,0.9239764]
[1745508334164,0.27106032,600.73,599.23,0.9239764]
[1745508334365,0.27106032,600.73,599.24,0.6176938]
[1745508334561,0.27106032,600.73,599.25,0.9239764]
[1745508334759,0.27106032,600.73,599.2,0.697]
[1745508334760,0.27106032,600.73,599.26,0.9239764]
[1745508334964,0.27106032,600.73,599.27,0.6176938]
[1745508335165,0.27106032,600.73,599.28,0.6176938]
[1745508335365,0.27106032,600.73,599.29,0.6176938]
[1745508335566,0.27106032,600.73,599.3,0.6176938]
[1745508335767,0.27106032,600.73,599.31,0.6176938]
[1745508335960,0.27106032,600.73,599.32,0.6176938]
[1745508336160,0.27106032,600.73,599.2,0.697]
[1745508336161,0.27106032,600.73,599.33,0.6173379]
[1745508336461,0.27106032,600.73,599.2,0.697]
[1745508336665,0.27106032,600.73,599.21,0.61732023]
[1745508336865,0.27106032,600.73,599.22,0.61732023]
[1745508337069,0.27106032,600.73,599.23,0.61732023]
[1745508337266,0.27106032,600.73,599.24,0.61732023]
[1745508337465,0.27106032,600.73,599.25,0.61732023]
[1745508337765,0.27106032,600.73,599.26,0.61732023]
[1745508337967,0.27106032,600.73,599.27,0.61732023]
[1745508338267,0.27105281,600.72,599.28,0.61732023]
[1745508338469,0.27105281,600.73,599.29,0.61732023]
[1745508338666,0.27105281,600.72,599.3,0.61732023]
[1745508338869,0.27105281,600.71,599.31,0.61732023]
[1745508339070,0.27105281,600.7,599.32,0.61732023]
[1745508339261,0.27105281,600.69,599.33,0.61732023]
[1745508339464,0.27105281,600.68,599.2,0.697]
[1745508339666,0.27105281,600.73,599.21,0.61703392]
[1745508339866,0.27105281,600.73,599.2,0.697]
[1745508339867,0.27105281,600.72,599.22,0.61702897]
[1745508340168,0.27105281,600.71,599.23,0.61702897]
[1745508340469,0.27105281,600.7,599.24,0.61702897]
[1745508340667,0.27105281,600.73,599.25,0.61702897]
[1745508340969,0.27105281,600.73,599.26,0.61702897]
[1745508341167,0.27105281,600.73,599.27,0.61702897]
[1745508341364,0.27106856,600.72,599.28,0.61702897]
[1745508341564,0.27106856,600.71,599.29,0.61702897]
[1745508341765,0.27106856,600.73,599.3,0.61702897]
[1745508342066,0.27106856,600.72,599.2,0.697]
[1745508342268,0.27106856,600.73,599.21,0.6171616]
[1745508342570,0.27106856,600.72,599.22,0.6171616]
[1745508342768,0.27106856,600.71,599.23,0.6171616]
[1745508342969,0.27106856,600.73,599.24,0.6171616]
[1745508343172,0.27106856,600.72,599.25,0.6171616]
[1745508343370,0.27106856,600.73,599.26,0.6171616]
[1745508343569,0.27106856,600.72,599.27,0.6171616]
[1745508343769,0.29005559,600.71,599.28,0.6171616]
[1745508343967,0.29005559,600.71,599.2,0.697]
[1745508343968,0.27106856,600.7,599.29,0.6171616]
[1745508344168,0.27106856,600.7,599.2,0.697]
[1745508344365,0.29005559,600.71,599.21,0.61701327]
[1745508344570,0.27105214,600.7,599.22,0.92328771]
[1745508344769,0.27105214,600.7,599.23,0.92328771]
[1745508344974,0.27105214,600.7,599.24,0.61701327]
[1745508345272,0.27105214,600.7,599.25,0.61688103]
[1745508345468,0.27105214,600.7,599.26,0.61688103]
[1745508345667,0.27105214,600.7,599.27,0.61688103]
[1745508345863,0.27105214,600.7,599.28,0.61688103]
[1745508346068,0.27105214,600.7,599.29,0.61688103]
[1745508346265,0.27105214,600.7,599.3,0.61688103]
[1745508346470,0.27105214,600.7,599.2,0.697]
[1745508346471,0.27105214,600.7,599.31,0.61688103]
[1745508346670,0.27105214,601.3,599.32,0.61688103]
[1745508346871,0.29000121,600.7,599.33,0.61688103]
[1745508347072,0.27105214,600.69,599.34,0.61688103]
[1745508347272,0.27105214,601.3,599.35,0.61688103]
[1745508347467,0.27105214,601.29,599.36,0.61688103]
[1745508347667,0.27105214,601.28,599.37,0.61688103]
[1745508347873,0.27105214,601.27,599.38,0.61688103]
[1745508348071,0.27105214,601.26,599.39,0.61688103]
[1745508348272,0.27105214,601.25,599.4,0.61688103]
[1745508348467,0.27105214,601.24,599.41,0.61688103]
[1745508348670,0.27105214,601.23,599.41,0.61688103]
[1745508348866,0.27105214,601.22,599.41,0.61688103]
[1745508349170,0.27105214,601.21,599.41,0.61688103]
[1745508349373,0.27105214,601.2,599.41,0.61688103]
[1745508349573,0.27105214,601.19,599.41,0.61688103]
[1745508349775,0.27105214,601.18,599.41,0.61688103]
[1745508349974,0.27105214,601.17,599.42,0.30618685]
[1745508350273,0.27105214,601.16,599.43,0.61688103]
[1745508350575,0.27105214,601.15,599.44,0.61688103]
[1745508350771,0.27105214,601.14,599.45,0.61688103]
[1745508350972,0.27105214,601.13,599.46,0.61688103]
[1745508351167,0.27105214,601.12,599.47,0.61688103]
[1745508351368,0.27105214,601.11,599.48,0.61688103]
[1745508351568,0.27105214,601.1,599.49,0.61688103]
[1745508351773,0.27105214,601.09,599.5,0.61688103]
[1745508352075,1.2761771,601.33,599.51,0.61688103]
[1745508352269,0.27096006,601.32,599.52,0.61688103]
[1745508352470,0.27096006,601.31,599.4,0.774]
[1745508352669,1.2761771,601.2,599.41,0.61656107]
[1745508352873,0.27096006,601.19,599.42,0.61656107]
[1745508353072,0.27096006,601.18,599.43,0.61656107]
[1745508353376,0.27096006,601.17,599.44,0.61656107]
[1745508353672,0.27100007,601.16,599.4,0.774]
[1745508353876,0.27100007,601.15,599.41,0.6166878]
[1745508354069,0.27100007,601.14,599.42,0.6166878]
[1745508354270,0.27100007,601.13,599.43,0.6166878]
[1745508354575,0.27100007,601.12,599.4,0.774]
[1745508354776,0.27100007,601.11,599.4,0.774]
[1745508355076,1.2761771,601.2,599.41,0.6166999]
[1745508355375,1.2761771,601.2,599.4,0.774]
[1745508355376,1.2761771,601.03,599.4,0.774]
[1745508355577,0.27101184,601.02,599.41,0.61665453]
[1745508355776,0.27101184,601.01,599.4,0.774]
[1745508355973,0.27101184,601.0,599.4,0.774]
[1745508356173,0.27101184,600.99,599.4,0.774]
[1745508356372,0.27101184,600.98,599.4,0.774]
[1745508356679,0.27101184,600.97,599.4,0.774]
[1745508356878,0.27101184,600.96,599.4,0.774]
[1745508357180,0.27101184,600.95,599.4,0.774]
[1745508357478,0.27101184,600.94,599.4,0.774]
[1745508357680,0.27101184,600.93,599.4,0.774]
[1745508357980,0.27101184,600.92,599.4,0.774]
[1745508358478,0.27102752,600.91,599.4,0.774]
[1745508358680,0.27102752,600.9,599.4,0.774]
[1745508358879,0.27102752,601.05,599.4,0.774]
[1745508359081,0.27102752,601.04,599.4,0.774]
[1745508359380,0.27102752,601.03,599.41,0.61655207]
[1745508359579,0.27102752,601.05,599.42,0.61655207]
[1745508359775,1.2761771,601.06,599.43,0.61655207]
[1745508359975,0.2709478,601.05,599.44,0.61655207]
[1745508360174,0.2709478,601.05,599.45,0.61655207]
[1745508360375,0.2709478,601.05,599.46,0.61655207]
[1745508360578,0.2709478,601.05,599.47,0.61655207]
[1745508360773,0.2709478,601.05,599.48,0.61655207]
[1745508360976,0.2709478,601.05,599.49,0.61655207]
[1745508361175,0.2709478,601.18,599.5,0.61655207]
[1745508361482,0.2709478,601.18,599.51,0.61655207]
[1745508361679,0.2709478,601.31,599.52,0.61655207]
[1745508361876,0.28991544,601.04,599.53,0.92266197]
[1745508362077,0.2709478,601.03,599.54,0.92266197]
[1745508362280,0.2709478,601.31,599.55,0.61655207]
[1745508362484,0.2709478,601.02,599.56,0.61655207]
[1745508362678,0.2709478,601.01,599.57,0.61655207]
[1745508362882,0.2709478,601.31,599.58,0.61655207]
[1745508363077,0.2709478,601.3,599.59,0.61655207]
[1745508363283,0.2709478,601.31,599.6,0.61655207]
[1745508363482,0.2709478,601.3,599.4,0.774]
[1745508363685,0.2709478,601.29,599.41,0.61627953]
[1745508363886,0.2709478,601.28,599.42,0.61627953]
[1745508364084,0.27094417,601.27,599.43,0.61627953]
[1745508364287,0.27094417,601.26,599.44,0.61627953]
[1745508364485,0.27094417,601.25,599.45,0.61627953]
[1745508364681,0.27094417,601.24,599.46,0.61627953]
[1745508364884,0.27094417,601.23,599.47,0.61627953]
[1745508365083,0.27094417,601.22,599.48,0.61627953]
[1745508365284,0.27094417,601.21,599.49,0.61627953]
[1745508365491,0.27094417,601.2,599.5,0.61627953]
[1745508365683,0.27092132,601.19,599.51,0.61627953]
[1745508365881,0.27092132,601.29,599.52,0.61627953]
[1745508366081,0.27092132,601.28,599.53,0.61627953]
[1745508366283,0.27092132,601.29,599.54,0.61627953]
[1745508366485,0.27092132,601.28,599.55,0.61627953]
[1745508366786,0.27092132,601.27,599.56,0.61627953]
[1745508366987,0.27092132,601.26,599.57,0.61627953]
[1745508367285,0.27091579,601.25,599.58,0.61627953]
[1745508367481,0.27091579,601.29,599.59,0.61627953]
[1745508367681,0.27091579,601.28,599.4,0.774]
[1745508367881,0.28991423,601.24,599.41,0.92228038]
[1745508368085,0.27091579,601.23,599.42,0.92228038]
[1745508368282,0.27091579,601.23,599.43,0.92228038]
[1745508368586,0.27091579,601.23,599.44,0.92228038]
[1745508368789,0.27091579,601.23,599.45,0.92228038]
[1745508369087,0.27091579,601.23,599.46,0.92228038]
[1745508369281,0.27091579,601.23,599.47,0.92228038]
[1745508369586,0.27091579,601.23,599.48,0.92228038]
[1745508369786,0.27091579,601.23,599.49,0.92228038]
[1745508370087,0.27091579,601.23,599.5,0.92228038]
[1745508370283,0.28991423,601.24,599.51,0.61614497]
[1745508370481,0.27088756,601.23,599.52,0.92181323]
[1745508370681,0.27088756,601.54,599.53,0.61570656]
[1745508370886,0.28987318,601.23,599.54,0.61570656]
[1745508371086,0.27088756,601.22,599.55,0.61570656]
[1745508371387,0.27088756,601.21,599.56,0.61570656]
[1745508371583,0.27088756,601.54,599.57,0.61570656]
[1745508371790,0.27088756,601.2,599.58,0.61570656]
[1745508372089,0.27088756,601.19,599.59,0.61570656]
[1745508372281,0.27088756,601.18,599.6,0.61570656]
[1745508372486,0.27088756,601.54,599.61,0.61570656]
[1745508372687,0.27088756,601.54,599.43,0.28987318]
[1745508372688,0.27088756,601.53,599.43,0.28987318]
[1745508372989,0.27088756,601.52,599.44,0.9215103]
[1745508373184,0.27088756,601.51,599.45,0.9215103]
[1745508373386,0.27088756,601.5,599.46,0.9215103]
[1745508373585,0.27088756,601.49,599.47,0.9215103]
[1745508373889,0.27088756,601.49,599.4,0.774]
[1745508373890,0.27088756,601.48,599.48,0.6154038]
[1745508374084,0.27088756,601.47,599.49,0.9213899]
[1745508374284,0.27088756,601.46,599.5,0.9213899]
[1745508374487,0.27088756,601.45,599.51,0.9213899]
[1745508374687,0.27088756,601.44,599.52,0.61528395]
[1745508374889,0.27088756,601.43,599.53,0.61528395]
[1745508375090,0.27088756,601.42,599.54,0.61528395]
[1745508375391,0.27088756,601.41,599.55,0.61528395]
[1745508375591,0.27088756,601.4,599.56,0.61528395]
[1745508375892,0.27088756,601.39,599.57,0.61506991]
[1745508376091,0.27088756,601.39,599.44,0.28988405]
[1745508376092,0.27088756,601.51,599.58,0.61506991]
[1745508376292,0.27088756,601.5,599.59,0.61506991]
[1745508376489,0.27088756,601.49,599.6,0.61506991]
[1745508376694,0.27088756,601.48,599.4,0.774]
[1745508376895,0.27088756,601.47,599.47,0.28984783]
[1745508377094,0.27088756,601.46,599.48,0.92105695]
[1745508377289,0.27088756,601.45,599.49,0.61495072]
[1745508377489,0.27088756,601.44,599.5,0.61495072]
[1745508377694,0.27088756,601.43,599.51,0.61493334]
[1745508377893,0.27088756,601.42,599.52,0.61493334]
[1745508378096,0.27088756,601.41,599.53,0.61493334]
[1745508378296,0.27088756,601.4,599.54,0.61493334]
[1745508378496,0.27088756,601.39,599.55,0.61493334]
[1745508378696,0.27088756,601.38,599.56,0.61493334]
[1745508378891,0.27088756,601.37,599.57,0.61491372]
[1745508379091,0.28984783,601.49,599.58,0.61491372]
[1745508379092,0.27088756,601.36,599.58,0.61491372]
[1745508379397,0.27088756,601.35,599.46,0.28986835]
[1745508379598,1.2761771,601.7,599.47,0.61494199]
[1745508379797,0.28988525,601.34,599.48,0.92105461]
[1745508380095,0.27089345,601.33,599.49,0.92105461]
[1745508380297,0.27089345,601.69,599.5,0.61494199]
[1745508380497,0.27089345,601.68,599.51,0.92105092]
[1745508380699,1.2761771,601.6,599.52,0.61494199]
[1745508380894,0.27089345,601.59,599.53,0.61494199]
[1745508381091,1.2761771,601.6,599.54,0.61494199]
[1745508381291,0.28988163,601.58,599.55,0.61494199]
[1745508381496,0.27090186,601.57,599.56,0.61494199]
[1745508381693,0.28988163,601.58,599.46,0.28986352]
[1745508381694,0.27090186,601.56,599.46,0.28986352]
[1745508381893,0.27090186,601.56,599.47,0.61485282]
[1745508382094,0.27090186,601.55,599.48,0.61485282]
[1745508382298,0.27090186,601.54,599.49,0.61485282]
[1745508382499,0.27090186,601.54,599.46,0.28986352]
[1745508382500,0.27090186,601.53,599.5,0.61485282]
[1745508382699,0.27090186,601.52,599.51,0.61485282]
[1745508382896,0.27090186,601.51,599.52,0.61485282]
[1745508383097,0.27090186,601.5,599.53,0.61485282]
[1745508383301,0.27090186,601.49,599.54,0.61485282]
[1745508383499,0.27090186,601.48,599.44,0.28989129]
[1745508383697,0.27090186,601.47,599.45,0.61490366]
[1745508383900,0.27090186,601.46,599.46,0.61490366]
[1745508384098,0.28989129,601.53,599.46,0.61490366]
[1745508384297,0.27091158,601.52,599.46,0.61490366]
[1745508384600,0.27091158,601.51,599.46,0.61490366]
[1745508384797,0.27091158,601.5,599.46,0.61490366]
[1745508385001,0.27091158,601.49,599.46,0.61490366]
[1745508385202,0.27091158,601.48,599.47,0.73]
[1745508385406,0.27091158,601.47,599.48,0.61490366]
[1745508385603,1.2761771,601.58,599.48,0.61490366]
[1745508385604,0.27091158,601.46,599.48,0.61490366]
[1745508385805,0.27090487,601.45,599.48,0.61490366]
[1745508386003,0.27090487,601.44,599.48,0.61490366]
[1745508386205,0.27090487,601.43,599.48,0.61490366]
[1745508386406,0.27090487,601.42,599.48,0.61490366]
[1745508386701,0.27090487,601.41,599.48,0.61490366]
[1745508386906,0.27090487,601.4,599.48,0.61490366]
[1745508387105,0.27090487,601.39,599.48,0.61490366]
[1745508387310,0.27089745,601.38,599.48,0.61490366]
[1745508387608,0.27089745,601.37,599.48,0.61490366]
[1745508387806,0.27089745,601.36,599.48,0.61490366]
[1745508388001,0.27089745,601.35,599.49,0.30610397]
[1745508388205,0.27089745,601.46,599.5,0.61490366]
[1745508388405,0.27089745,601.45,599.5,0.61490366]
[1745508388610,2.17127355,601.74,599.51,0.61490366]
[1745508388611,0.27089745,601.44,599.51,0.61490366]
[1745508388909,0.27086283,601.43,599.52,0.61501007]
[1745508389109,0.27086283,601.42,599.53,0.61501007]
[1745508389304,0.27086283,601.41,599.54,0.61501007]
[1745508389505,0.27086283,601.4,599.55,0.61501007]
[1745508389704,0.27086283,601.39,599.56,0.61501007]
[1745508389908,0.27086283,601.44,599.57,0.61501007]
[1745508390107,0.27086283,601.38,599.58,0.61501007]
[1745508390306,0.2898756,601.45,599.59,0.61501007]
[1745508390506,0.27086993,601.44,599.6,0.61501007]
[1745508390706,0.27086993,601.44,599.61,0.61497173]
[1745508390907,0.27086993,601.44,599.62,0.61497173]
[1745508391207,0.27086993,601.44,599.63,0.61497173]
[1745508391405,0.27086993,601.44,599.47,0.73]
[1745508391611,0.27086993,601.44,599.48,0.61498879]
[1745508391808,0.28986111,601.43,599.49,0.61498879]
[1745508392014,0.27086993,601.42,599.49,0.61498879]
[1745508392407,0.27086993,601.42,599.48,0.28986111]
[1745508392607,0.27086993,601.42,599.49,0.92107425]
[1745508392912,0.27086993,601.42,599.5,0.61498966]
[1745508393113,0.27086993,601.42,599.51,0.61498966]
[1745508393309,0.27086993,601.42,599.52,0.61498966]
[1745508393509,0.27087141,601.41,599.53,0.61498966]
[1745508393710,0.27087141,601.42,599.54,0.61498966]
[1745508393907,0.27087141,601.42,599.55,0.61498966]
[1745508394110,0.27087141,601.42,599.56,0.61498966]
[1745508394311,0.27087141,601.41,599.57,0.61499915]
[1745508394515,0.27087141,601.4,599.58,0.61499915]
[1745508394713,0.27087141,601.39,599.59,0.92108741]
[1745508394912,0.28985869,601.39,599.6,0.61499915]
[1745508395113,0.2708733,601.38,599.61,0.61499915]
[1745508395313,0.2708733,601.37,599.62,0.61499915]
[1745508395514,0.2708733,601.36,599.63,0.61499915]
[1745508395715,0.2708733,601.38,599.61,0.594]
[1745508395916,0.2708733,601.37,599.62,0.61489697]
[1745508396111,0.2708733,601.38,599.61,0.594]
[1745508396319,0.2708733,601.37,599.62,0.6149024]
[1745508396610,0.2708733,601.36,599.63,0.6149024]
[1745508396815,0.2708733,601.35,599.61,0.594]
[1745508397011,1.2761771,601.29,599.62,0.61490282]
[1745508397214,0.2708733,601.28,599.63,0.61490282]
[1745508397410,0.2708733,601.28,599.64,0.61490282]
[1745508397615,0.2708733,601.28,599.61,0.594]
[1745508397814,0.28989491,601.27,599.62,0.61493108]
[1745508398015,0.28989491,601.27,599.63,0.61493108]
[1745508398311,0.27086932,601.26,599.61,0.594]
[1745508398516,0.27086932,601.26,599.62,0.61492328]
[1745508398717,0.27086932,601.26,599.63,0.61502717]
[1745508398917,0.27086932,601.26,599.61,0.594]
[1745508399216,0.27086932,601.26,599.62,0.61501358]
[1745508399416,0.27086932,601.26,599.61,0.594]
[1745508399617,0.27086932,601.26,599.62,0.61514846]
[1745508399818,0.27086932,601.26,599.61,0.594]
[1745508400013,0.27086932,601.26,599.62,0.61516732]
[1745508400213,0.27086932,601.26,599.61,0.594]
[1745508400418,0.27086932,601.26,599.62,0.61517814]
[1745508400618,0.27086932,601.26,599.63,0.61517814]
[1745508400821,0.27086932,601.37,599.61,0.594]
[1745508401018,0.28988525,601.25,599.62,0.61528884]
[1745508401214,0.27087397,601.24,599.63,0.61528884]
[1745508401414,0.27087397,601.37,599.64,0.61528884]
[1745508401615,1.2761771,601.38,599.61,0.594]
[1745508401818,1.2761771,601.38,599.62,0.6153068]
[1745508402018,1.2761771,601.38,599.63,0.6153068]
[1745508402319,1.2761771,601.43,599.64,0.6153068]
[1745508402514,0.27086714,601.37,599.65,0.6153068]
[1745508402718,0.27086714,601.37,599.66,0.6153068]
[1745508402919,0.27086501,601.36,599.67,0.6153068]
[1745508403120,0.27086501,601.42,599.61,0.594]
[1745508403316,0.27086501,601.42,599.62,0.61549787]
[1745508403621,0.27086501,601.42,599.63,0.61549787]
[1745508403820,0.28987439,601.41,599.64,0.61549787]
[1745508404021,0.27086501,601.4,599.65,0.61549787]
[1745508404217,0.27086501,601.4,599.66,0.61549787]
[1745508404423,0.27086501,601.4,599.67,0.61549787]
[1745508404721,0.27086501,601.4,599.68,0.61549787]
[1745508404923,0.27086501,601.4,599.61,0.594]
[1745508405122,0.27086501,601.4,599.62,0.61596461]
[1745508405315,0.27086501,601.4,599.63,0.61596461]
[1745508405520,0.27086501,601.4,599.64,0.61596461]
[1745508405720,0.27086501,601.4,599.65,0.61596461]
[1745508405920,0.27086501,601.4,599.66,0.61596461]
[1745508406217,0.27086501,601.4,599.67,0.61596461]
[1745508406419,0.27086501,601.4,599.68,0.61596461]
[1745508406622,0.27086501,601.4,599.69,0.61596461]
[1745508406822,0.56071405,601.39,599.7,0.61596461]
[1745508407122,0.27086501,601.38,599.71,0.61596461]
[1745508407422,0.27086501,601.38,599.61,0.594]
[1745508407624,0.27086501,601.38,599.62,0.61637143]
[1745508407925,0.27086501,601.38,599.63,0.61637143]
[1745508408217,0.27086501,601.38,599.64,0.61637143]
[1745508408418,0.27086501,601.38,599.65,0.61637143]
[1745508408624,0.27086501,601.38,599.66,0.61637143]
[1745508408822,0.27086501,601.38,599.67,0.61637143]
[1745508409020,0.27086501,601.38,599.61,0.594]
[1745508409217,0.27086501,601.38,599.62,0.61653351]
[1745508409425,0.27086501,601.38,599.63,0.61653351]
[1745508409619,0.27086501,601.38,599.64,0.61653351]
[1745508409821,0.28983697,601.37,599.65,0.61653351]
[1745508410022,0.27086501,601.36,599.66,0.61653351]
[1745508410223,0.27086501,601.36,599.67,0.61653351]
[1745508410521,0.28983697,601.37,599.68,0.61653351]
[1745508410722,0.27085689,601.36,599.69,0.61653351]
[1745508411022,0.27085689,601.36,599.7,0.61653351]